Cogmind - Beta 9.1 @@@ ROGUE MODE // 2019.11.03 @ 11:56:54 Player: MrPainting Result: Self-destructed Performance ------------- Evolutions (1) 500 Regions Visited (6) 1200 Robots Destroyed (44) 220 Value Destroyed (1158) 1158 Prototype IDs (4) 80 Alien Tech Used (0) 0 Bonus (302) 302 TOTAL SCORE: 3460 Bonus ------- Follower Combat Kills 7 Aligned with FarCom 300 Friendly Fire -5 Cogmind --------- Core Integrity 191/400 Matter 127/300 Energy 100/100 System Corruption 0% Temperature Cool (0) Location -8/Mines Parts ------- Power (1) Propulsion (3) Improved Treads Improved Treads Utility (3) Medium Storage Unit Signal Interpreter Skeleton Box Weapon (2) Mini Grenade Launcher Mini Grenade Launcher Inventory (8) Improved Treads Improved Treads Humpback ECM Suite Improved Assault Rifle Improved Assault Rifle Mini Grenade Launcher Peak State ------------ Power Light Nuclear Core Propulsion Improved Treads Improved Treads Improved Treads Utility Improved Heat Sink Medium Storage Unit Signal Interpreter Weapon Improved Assault Rifle Field Lobotomy Kit Inventory Improved Treads Improved Treads Humpback ECM Suite Mini Grenade Launcher Mini Grenade Launcher Mini Grenade Launcher [Rating: 28] Favorites ----------- Power Light Nuclear Core Engine Ion Engine Power Core Light Nuclear Core Propulsion Improved Treads Treads Improved Treads Leg Aluminum Leg Utility Medium Storage Unit Device Improved Heat Sink Storage Medium Storage Unit Processor Signal Interpreter Weapon Improved Assault Rifle Energy Gun Heavy EM Pulse Gun Energy Cannon Beam Cannon Ballistic Gun Improved Assault Rifle Launcher Mini Grenade Launcher Special Weapon Field Lobotomy Kit Build | -11 -10 -10 -9 -9 -9 -8 ------- Run | Scr Mat Min Mat Min Exi Min Slots Evolved 2 | . . . 2 . . . Power . | . . . . . . . Propulsion 1 | . . . 1 . . . Utility 1 | . . . 1 . . . Weapon . | . . . . . . . Parts Attached 39 | 6 11 2 9 1 8 2 Power 4 | 1 1 . 1 1 . . Engine 2 | 1 . . 1 . . . Core 2 | . 1 . . 1 . . Reactor . | . . . . . . . Propulsion 8 | 2 3 . 3 . . . Treads 3 | . . . 3 . . . Leg 5 | 2 3 . . . . . Wheel . | . . . . . . . Hover . | . . . . . . . Flight . | . . . . . . . Utility 10 | 1 3 1 2 . 3 . Device 7 | . 3 . 1 . 3 . Storage 2 | 1 . 1 . . . . Processor 1 | . . . 1 . . . Hackware . | . . . . . . . Protection . | . . . . . . . Artifact . | . . . . . . . Weapon 17 | 2 4 1 3 . 5 2 Energy Gun 3 | 1 2 . . . . . Energy Cannon 2 | . 1 . . . 1 . Ballistic Gun 7 | 1 1 . 2 . 3 . Ballistic Cannon . | . . . . . . . Launcher 4 | . . 1 1 . . 2 Special Weapon 1 | . . . . . 1 . Impact Weapon . | . . . . . . . Slashing Weapon . | . . . . . . . Piercing Weapon . | . . . . . . . Special Melee Weapon . | . . . . . . . Unidentified Prototypes 4 | . . . 1 . 3 . Parts Lost 8 | . 1 1 4 . . 2 Power 3 | . . . 2 . . 1 Propulsion 2 | . . . 1 . . 1 Utility 2 | . 1 1 . . . . Weapon 1 | . . . 1 . . . Highest Loss Streak 3 | . 1 1 3 . . 2 Average Slot Usage (%) 91 | . 86 97 74 88 100 94 Engine 1 | . 4 . 1 . . . Core 8 | . 9 14 2 . 11 8 Treads 16 | . . . 13 33 33 30 Leg 12 | . 28 28 11 . . . Device 11 | . 15 15 2 11 11 11 Storage 8 | . . 9 11 11 11 11 Processor 6 | . . . 9 11 11 11 Energy Gun 2 | . 12 . . . . . Energy Cannon 1 | . 7 . . . . . Ballistic Gun 14 | . 7 14 16 22 22 8 Launcher 6 | . . 13 6 . . 13 Naked Turns . | . . . . . . . Heaviest Build 21 | 13 13 17 16 20 21 19 Greatest Support 69 | 20 20 20 69 69 69 69 Greatest Overweight (x) 1 | . . . 1 . . . Average Overweight (x) . | . . . . . . . Largest Inventory Capacity 8 | 6 6 8 8 8 8 8 Average Capacity 6 | 5 4 6 8 8 8 8 Most Carried 8 | . 4 6 8 8 8 8 Average Carried 6 | . 3 5 6 8 7 8 Final Capacity 8 | 6 4 8 8 8 8 8 Final Carried 8 | . 4 6 8 8 8 8 Class Distribution -------------------- 66% | Mutant 33% | Scavenger-Mutant Dominant Class ---------------- Scavenger-Mutant | -10/Materials Scavenger-Mutant | -10/Mines Mutant | -9/Materials Mutant | -9/Mines Mutant | -9/Exiles Mutant | -8/Mines Resources | -11 -10 -10 -9 -9 -9 -8 ----------- Run | Scr Mat Min Mat Min Exi Min Matter Collected 821 | 213 158 30 165 69 184 2 Remotely . | . . . . . . . Salvage Created 1424 | . 825 11 344 110 . 134 Parts 76 | . 36 2 28 9 . 1 Haulers Intercepted 4 | . 2 . 2 . . . Recyclers Shooed 3 | . 2 . 1 . . . Parts Field Recycled . | . . . . . . . Retrieved Matter . | . . . . . . . Parts Self-Destructed . | . . . . . . . Prevented . | . . . . . . . Kills | -11 -10 -10 -9 -9 -9 -8 ------- Run | Scr Mat Min Mat Min Exi Min Combat Hostiles Destroyed 28 | . 8 2 9 3 . 6 Guns 13 | . 7 . 3 3 . . AOE 15 | . 1 2 6 . . 6 Classes Destroyed 10 | . 4 1 4 . . 1 Worker 1 | . . . 1 . . . Builder 3 | . . . 3 . . . Hauler 4 | . 2 . 2 . . . Recycler 4 | . 4 . . . . . Operator 1 | . . . 1 . . . Watcher 3 | . 2 . 1 . . . Swarmer 6 | . . 2 4 . . . Grunt 19 | . 8 . 3 3 . 5 Duelist 1 | . . . . . . 1 Sentry 2 | . . . 2 . . . Best Kill Streak 13 | . 13 2 8 3 . 3 Combat Bots Only 5 | . 5 2 4 3 . 3 Max Kills in Single Turn 3 | . 1 2 3 1 . 1 Gunslinging . | . . . . . . . Exploded 2 | . 1 2 2 . . 1 Melee . | . . . . . . . Uniques/NPCs Destroyed . | . . . . . . . Combat | -11 -10 -10 -9 -9 -9 -8 -------- Run | Scr Mat Min Mat Min Exi Min Damage Taken 1501 | . 326 63 602 144 . 366 Core 265 | . 56 . 144 30 . 35 Absorbed by Shields . | . . . . . . . Core Remaining (%) 88 | 100 . 77 . . . . Volleys Fired 80 | . 38 1 25 6 . 10 Largest 2 | . 2 1 2 2 . 2 Hottest 90 | . 90 30 46 46 . 60 Shots Fired 136 | . 70 1 33 12 . 20 Gun 98 | . 65 . 16 12 . 5 Cannon 5 | . 5 . . . . . Launcher 33 | . . 1 17 . . 15 Special . | . . . . . . . Kinetic 38 | . 5 . 16 12 . 5 Thermal 5 | . 5 . . . . . Explosive 33 | . . 1 17 . . 15 Electromagnetic 60 | . 60 . . . . . Robot Hit Streak 16 | . 7 . 14 15 . 16 Robot Miss Streak 3 | . 3 3 2 . . 1 Penetration Max . | . . . . . . . Secondary Targets 2 | . 1 . 1 . . . Max Gunslinging Chain 1 | . 1 . 1 . . . Shots Hit Robots 90 | . 42 . 25 12 . 11 Core Hits 60 | . 19 2 23 4 . 12 Critical Hits 1 | . . . 1 . . . Critical Kills 1 | . . . 1 . . . Critical Parts Destroyed . | . . . . . . . Melee Attacks . | . . . . . . . Impact . | . . . . . . . Slashing . | . . . . . . . Piercing . | . . . . . . . Sneak Attacks . | . . . . . . . Combat Hostiles . | . . . . . . . Follow-up Attacks . | . . . . . . . Damage Inflicted 3102 | . 782 185 1180 161 . 794 Guns 1040 | . 633 . 233 161 . 13 Cannons 51 | . 51 . . . . . Explosions 2011 | . 98 185 947 . . 781 Melee . | . . . . . . . Ramming . | . . . . . . . Kinetic 430 | . 23 . 233 161 . 13 Thermal 149 | . 149 . . . . . Explosive 1913 | . . 185 947 . . 781 Electromagnetic 610 | . 610 . . . . . Impact . | . . . . . . . Slashing . | . . . . . . . Piercing . | . . . . . . . Highest Corruption . | . . . . . . . Average Corruption . | . . . . . . . Corruption Purged . | . . . . . . . Overload Shots . | . . . . . . . Overflow Damage 70 | . 5 24 25 . . 16 Projectiles . | . . . . . . . Explosions 70 | . 5 24 25 . . 16 Melee . | . . . . . . . Knockbacks . | . . . . . . . Impact . | . . . . . . . Kinetic . | . . . . . . . Secondary . | . . . . . . . Self-Inflicted Damage 443 | . 31 49 211 . . 152 Shots 13 | . 1 1 7 . . 4 Rammed . | . . . . . . . Targets Rammed . | . . . . . . . Kicked . | . . . . . . . Crushed . | . . . . . . . Highest Temperature 242 | . 242 . 1 . . 26 Average Temperature 113 | . 134 . 1 . . 12 Received Heat Transfer 383 | . 53 . 129 84 . 117 Effects 2 | . 2 . . . . . Interference 2 | . 2 . . . . . Siege Activations . | . . . . . . . Robots Corrupted 1 | . 1 . . . . . Combat Hostiles . | . . . . . . . Parts Fried 5 | . 5 . . . . . Impact Corruptions . | . . . . . . . Robots Melted . | . . . . . . . Combat Hostiles . | . . . . . . . Parts Melted . | . . . . . . . Heat Transferred 261 | . 261 . . . . . Parts Sabotaged . | . . . . . . . Parts Stolen . | . . . . . . . Parts Stripped . | . . . . . . . Power Chain Reactions 2 | . 2 . . . . . Missiles Intercepted . | . . . . . . . Alert | -11 -10 -10 -9 -9 -9 -8 ------- Run | Scr Mat Min Mat Min Exi Min Peak Influence 361 | . 253 74 361 210 . 179 Average Influence 116 | . 156 42 240 147 . 81 Maximum Alert Level 1 | . 1 . 1 1 . . Low Security (%) 78 | . . . . . . . Level 1 21 | . . . . . . . Level 2 . | . . . . . . . Level 3 . | . . . . . . . Level 4 . | . . . . . . . Level 5 . | . . . . . . . High Security . | . . . . . . . Max Security . | . . . . . . . Squads Dispatched 3 | . 1 . 2 . . . Investigation 1 | . 1 . . . . . Extermination . | . . . . . . . Reinforcement 2 | . . . 2 . . . Assault . | . . . . . . . Garrison . | . . . . . . . Intercept . | . . . . . . . Construction Impeded 1 | . . . 1 . . . Haulers Reinforced . | . . . . . . . Stealth | -11 -10 -10 -9 -9 -9 -8 --------- Run | Scr Mat Min Mat Min Exi Min Distress Signals 5 | . 4 . 1 . . . Communications Jammed . | . . . . . . . Distress Signals . | . . . . . . . Times Spotted 38 | . 14 3 12 3 . 6 Peak Tracking Total 6 | . 6 3 4 3 . 3 Tactical Retreats 1 | . 1 . . . . . Traps | -11 -10 -10 -9 -9 -9 -8 ------- Run | Scr Mat Min Mat Min Exi Min Traps Triggered 3 | . 1 . 2 . . . Indirectly . | . . . . . . . Trap Hack Attempts . | . . . . . . . Triggered . | . . . . . . . Disarmed . | . . . . . . . Reprogrammed . | . . . . . . . Reused . | . . . . . . . Traps Extracted . | . . . . . . . Installed . | . . . . . . . Triggered 1 | . . . . 1 . . Machines | -11 -10 -10 -9 -9 -9 -8 ---------- Run | Scr Mat Min Mat Min Exi Min Machines Disabled 7 | . 2 . 5 . . . Max in Single Turn 2 | . 1 . 2 . . . Machines Sabotaged . | . . . . . . . Garrisons Compromised . | . . . . . . . Overloaded Fab Kills . | . . . . . . . Fab Network Shutdowns . | . . . . . . . Hacking | -11 -10 -10 -9 -9 -9 -8 --------- Run | Scr Mat Min Mat Min Exi Min Machines Accessed . | . . . . . . . Terminals . | . . . . . . . Fabricators . | . . . . . . . Repair Stations . | . . . . . . . Recycling Units . | . . . . . . . Scanalyzers . | . . . . . . . Garrison Access . | . . . . . . . Total Hacks . | . . . . . . . Successful . | . . . . . . . Failed . | . . . . . . . Catastrophic . | . . . . . . . Database Lockouts . | . . . . . . . Manual 1 | . . . . . 1 . Terminals . | . . . . . . . Fabricators . | . . . . . . . Repair Stations . | . . . . . . . Recycling Units . | . . . . . . . Scanalyzers . | . . . . . . . Garrison Access . | . . . . . . . Terminal Hacks . | . . . . . . . Fabricator Hacks . | . . . . . . . Repair Station Hacks . | . . . . . . . Recycling Unit Hacks . | . . . . . . . Scanalyzer . | . . . . . . . Garrison Access Hacks . | . . . . . . . Unauthorized Hacks . | . . . . . . . Terminals . | . . . . . . . Fabricators . | . . . . . . . Repair Stations . | . . . . . . . Recycling Units . | . . . . . . . Scanalyzers . | . . . . . . . Garrison Access . | . . . . . . . Data Cores Recovered . | . . . . . . . Used . | . . . . . . . Hacking Detections . | . . . . . . . Full Trace Events . | . . . . . . . Feedback Events . | . . . . . . . Feedback Blocked . | . . . . . . . Robot Schematics Acquired . | . . . . . . . Robots Built . | . . . . . . . Matter . | . . . . . . . Time . | . . . . . . . Total Robot Build Rating . | . . . . . . . Part Schematics Acquired . | . . . . . . . Parts Built . | . . . . . . . Matter . | . . . . . . . Time . | . . . . . . . Total Part Build Rating . | . . . . . . . Parts Repaired . | . . . . . . . Time . | . . . . . . . Parts Recycled . | . . . . . . . Recycled Matter . | . . . . . . . Retrieved Matter . | . . . . . . . Retrieved Components . | . . . . . . . Parts Scanalyzed . | . . . . . . . Part Schematics Acquired . | . . . . . . . Parts Damaged . | . . . . . . . Bothacking | -11 -10 -10 -9 -9 -9 -8 ------------ Run | Scr Mat Min Mat Min Exi Min Used RIF Installer . | . . . . . . . Robots Hacked . | . . . . . . . Non-combat . | . . . . . . . Combat . | . . . . . . . Robot Hacks Applied . | . . . . . . . Relay Couplers Released . | . . . . . . . Robots Rewired . | . . . . . . . Allies Hacked . | . . . . . . . Hacks Repelled . | . . . . . . . Allies | -11 -10 -10 -9 -9 -9 -8 -------- Run | Scr Mat Min Mat Min Exi Min Total Allies 1 | . . 1 . . . . Largest Group 1 | . . 1 1 . . . Highest-Rated Group 31 | . . 31 31 . . . Highest-Rated Ally 31 | . . 31 31 . . . Total Orders . | . . . . . . . Ally Attacks 3 | . . 1 2 . . . Total Damage 62 | . . 21 41 . . . Kills 2 | . . 1 1 . . . Allies Corrupted . | . . . . . . . Allies Melted . | . . . . . . . Intel | -11 -10 -10 -9 -9 -9 -8 ------- Run | Scr Mat Min Mat Min Exi Min Robot Analysis Total . | . . . . . . . Derelict Logs Recovered 2 | . . 1 . 1 . . Drone Launches . | . . . . . . . Drone Recoveries . | . . . . . . . Exploration | -11 -10 -10 -9 -9 -9 -8 ------------- Run | Scr Mat Min Mat Min Exi Min Turns Passed 2826 | 68 509 616 330 311 506 486 Spaces Moved 1803 | 52 313 488 178 183 306 283 Core 4 | 4 . . . . . . Treads 841 | . . . 69 183 306 283 Legs 958 | 48 313 488 109 . . . Wheels . | . . . . . . . Hover . | . . . . . . . Flight . | . . . . . . . Fastest Speed 50 | 50 120 120 120 160 160 160 Average Speed 138 | 114 120 120 140 160 160 160 Slowest Speed 160 | 120 120 120 160 160 160 160 Overloaded Moves . | . . . . . . . Propulsion Burnouts . | . . . . . . . Robots Hopped . | . . . . . . . Cave-ins Triggered . | . . . . . . . Exploration Rate (%) 53 | 3 64 95 26 51 65 69 Regions Visited 6 Branch Regions 4 Pre-discovered Areas 1 | . . 1 . . . . Known Exits Taken 3 | . . . 1 1 1 . Unknown Exits Taken 3 | 1 1 1 . . . . Scrap Searched 2 | . . 2 . . . . Spaces Dug . | . . . . . . . Terrain Destroyed 213 | . 7 12 86 . . 108 Melee . | . . . . . . . Projectile . | . . . . . . . AOE 213 | . 7 12 86 . . 108 Actions | -11 -10 -10 -9 -9 -9 -8 --------- Run | Scr Mat Min Mat Min Exi Min Total 1984 | 57 377 518 225 189 323 295 Wait 24 | . 2 22 . . . . Move 1797 | 51 312 487 177 182 305 283 Hop . | . . . . . . . Pick Up 18 | . 5 3 9 . 1 . Fast Attach 27 | 6 7 2 4 1 7 . Attach 4 | . 1 . 3 . . . Detach . | . . . . . . . Swap 8 | . 3 . 2 . 1 2 Drop 26 | . 9 3 5 . 9 . Fire 80 | . 38 1 25 6 . 10 Melee . | . . . . . . . Ram . | . . . . . . . Kick . | . . . . . . . Crush . | . . . . . . . Escape Stasis . | . . . . . . . Rewire . | . . . . . . . Trap . | . . . . . . . Miscellaneous . | . . . . . . . Route ------- -11/Scrapyard -10/Materials (discovered 4 exits: [*Mat x2] / [*Min x2]) -10/Mines (discovered 2 exits: [*Mat x2]) -9/Materials -9/Mines (discovered 2 exits: *Mat / *Exi) -9/Exiles -8/Mines History --------- Turn | Location | Event 4 | -11/Scrapyard | Discovered new exit (range 16) 69 | -11/Scrapyard | Entered Materials 295 | -10/Materials | Discovered new exit (range 14) 429 | -10/Materials | Discovered new exit (range 11) 517 | -10/Materials | Discovered new exit (range 5) 526 | -10/Materials | Build established: Scavenger-Mutant 556 | -10/Materials | Discovered new exit (range 11) 578 | -10/Materials | Entered Mines 583 | -10/Mines | Assisted by bots powering up and referring to "LRC-V3" 683 | -10/Mines | Learned location of Storage (-7) 817 | -10/Mines | Discovered new exit (range 8) 991 | -10/Mines | Discovered new exit (range 12) 1006 | -10/Mines | Received a Mining Laser from a helpful Derelict 1194 | -10/Mines | Entered Materials 1194 | -9/Materials | Accompanied by 1 ally 1194 | -9/Materials | Evolved 2 slots: Propulsion x1, Utility x1 1361 | -9/Materials | Lost 3 parts (1p1n1w) 1463 | -9/Materials | Discovered new exit (range 12) 1522 | -9/Materials | Identified exit to Mines 1524 | -9/Materials | Entered Mines 1600 | -9/Mines | Identified exit to Materials 1617 | -9/Mines | Build established: Mutant 1827 | -9/Mines | Deemed a non-threat by the Exiles lab entrance 1829 | -9/Mines | Discovered new exit (range 5) 1834 | -9/Mines | Identified exit to Exiles 1835 | -9/Mines | Entered Exiles 1874 | -9/Exiles | Met 8R-AWN 1901 | -9/Exiles | Met EX-HEX 2015 | -9/Exiles | Met EX-BIN 2033 | -9/Exiles | Aligned with FarCom system 2034 | -9/Exiles | Given EX-Vault access code 2071 | -9/Exiles | Opened EX-Vault 2081 | -9/Exiles | Found Prototype Special Weapon 2081 | -9/Exiles | Identified Field Lobotomy Kit 2088 | -9/Exiles | Found Prototype Device 2088 | -9/Exiles | Identified Skeleton Box 2102 | -9/Exiles | Found Prototype Energy Cannon 2102 | -9/Exiles | Identified Gui. Plasma Cannon 2147 | -9/Exiles | Warned to stay clear of 0b10 Research branches 2194 | -9/Exiles | Met EX-DEC 2250 | -9/Exiles | Discovered new exit (range 10) 2338 | -9/Exiles | Identified exit to Mines 2341 | -9/Exiles | Left Exiles lab with Skeleton Box 2341 | -9/Exiles | Entered Mines 2724 | -8/Mines | Core integrity fell below 50% 2827 | -8/Mines | Self-destructed Last Messages --------------- 02718_ Imp. Treads destroyed. 02718_ Destroyed Imp. Treads. 02721_ L-31 Rogue destroyed. 02722_ Lgt. Nuclear Core destroyed. 02724_ G-47 Trooper destroyed. 02730_ U-05 Engineer lays Concrete. 02730_ G-47 Trooper destroyed. 02731_ U-05 Engineer lays Concrete. 02734_ Acquired 2 matter. 02735_ U-05 Engineer builds a Wall. 02739_ U-05 Engineer lays Concrete. 02740_ The unstable cave ceiling collapses. 02740_ U-05 Engineer builds a Wall. 02741_ The unstable cave ceiling collapses. 02744_ U-05 Engineer builds a Wall. 02746_ The unstable cave ceiling collapses. 02749_ U-05 Engineer builds a Wall. 02753_ U-05 Engineer lays Concrete. 02754_ U-05 Engineer builds a Wall. 02758_ The unstable cave ceiling collapses. Map ----- +----------------------------------------------------+ | ????????????????????????????? | | ????????????????????????????? | | ????????????????????????????? | | ????????????????????????????? | | ????????????????????????????? | | ????????????????????????????? | | ????????????????????????????? | | ????????????????????????????? | | ????????????????????????????? | | ????????????????????????????? | | ????????????????????????????? | | ???s????????????????????????? | | ????s???????????????????????? | | ???s????????????????????????? | | ???s????????????????????????# | | ????????????????????????????# | | ????????????????????????????# | | ????????????????????????????# | | ???????????????????????????## | | ??????????????????????????## | | ???###???????????????????## | | ???# ???????????????????# | | ???# #???????????????????# | | ???# #???????????????##### | | ???# #??########????## | | ??##@#### ### ###### | | ?### # ## | | ### ## ## | | ## ### #### ## | | ## % ##??# ####### | | ?## ###??# ##?????# | | ?#### ##???# #??????## | | # ### #???# #???????# | | ?## # ## ##???# #???????? | | ????#?#####????## ##???????? | | ????????????????###?????????? | | ????????????????????????????? | | ????????????????????????????? | | ????????????????????????????? | | ????????????????????????????? | | ????????????????????????????? | | ????????????????????????????? | | ????????????????????????????? | | ????????????????????????????? | | | | | | | | | | | | | +----------------------------------------------------+ Best States ------------- Heat Dissipation 42 Energy Generation 14 Energy Capacity 250 Matter Stores 300 Matter Capacity 300 Sight Range 16 Terrain Scan Density 10 ECM Strength 1 Heat Shielding 75 Evasion (%) 40 Recoil Reduction 3 Item Schematics ----------------- None Robot Schematics ------------------ None Fabricated ------------ Nothing Alien Tech Used ----------------- None Achievements -------------- None Challenges ------------ None Game ------ Seed ShieldRagnarokPenetrator Manual? 0 Play Time 00:16:56 Cumulative 101.9 hours Start 2019.11.03 @ 11:41:22 End 2019.11.03 @ 11:56:54 Sessions 1 Manual Loads 0 Difficulty Rogue Special Mode None Game No. 165 Rogue 165 Adventurer 0 Explorer 0 Win Type - Total 0 Types 0/0/0/0/0/0/0 Lore% 31 Gallery% 48 Achievement% 34 Wizard Run 0 Options --------- ASCII 0 Keyboard 0 Movement Mouse Keybinds 0 Fullscreen 1 Font 18/SmallcapsGlow Map View 76x50 Tactical HUD 1 Map Filters NONE Filters NONE Steam 1 RUN: e028b049-6f1d-4d71-a6c2-b67903c7ea66